Cogmind - Beta 10.2 @@@ ROGUE MODE // 2022.01.31 @ 23:48:22 Player: Avari3l Result: Destroyed by H-77 Assassin with High-powered Shotgun Performance ------------- Evolutions (6) 3000 Regions Visited (14) 2800 Robots Destroyed (145) 725 Value Destroyed (6285) 6285 Prototype IDs (9) 180 Alien Tech Used (0) 0 Bonus (142) 142 TOTAL SCORE: 13132 Bonus ------- High Alert Combat Kills 142 Cogmind --------- Core Integrity 0/1150 Matter 300/300 Energy 100/100 System Corruption 8% Temperature Cool (0) Movement Core (600) Ox11 Location -4/Factory Parts ------- > --- POWER (1) -------- (None) > --- PROPULSION (5) --- (None) > --- UTILITY (10) ----- High-capacity Storage Unit Advanced Signal Interpreter Advanced Terrain Scan Processor Advanced Melee Analysis Suite Improved Target Analyzer > --- WEAPON (3) ------- Heavy Pick > --- INVENTORY (12) --- Improved Sensor Array Long-range Terrain Scanner Improved Actuator Array Tesla Rifle Enhanced Gauss Cannon Mini Grenade Launcher Great Axe Heavy Pick Peak State ------------ > --- POWER ------------ Micro Fission Core > --- PROPULSION ------- Armored Medium Treads Flexi-carbon Leg Flexi-carbon Leg Flexi-carbon Leg Centrium Leg > --- UTILITY ---------- High-capacity Storage Unit Advanced Signal Interpreter Long-range Terrain Scanner Advanced Terrain Scan Processor Advanced Melee Analysis Suite Advanced Melee Analysis Suite Improved Actuator Array Hacking Suite Advanced Hacking Suite System Shield > --- WEAPON ----------- Heavy Pick Heavy Pick Kinetic Spear > --- INVENTORY -------- Heavy Siege Treads Coolant Injector Improved Sensor Array Improved Target Analyzer Improved Weapon Shielding System Shield Tesla Rifle Enhanced Gauss Cannon Mini Grenade Launcher Great Axe Heavy Pick [Rating: 97] Favorites ----------- Power Improved Ion Engine Engine Improved Ion Engine Power Core Micro Fission Core Reactor Light Antimatter Reactor Propulsion Light Treads Treads Light Treads Leg Flexi-carbon Leg Wheel Armored Huge Wheel Hover Unit Antigrav System Utility Hacking Suite Device Long-range Terrain Scanner Storage Large Storage Unit Processor Advanced Terrain Scan Processor Hackware Hacking Suite Protection Improved Medium Armor Plating Weapon Scythe Energy Gun EM Pulse Gun Energy Cannon Ion Cannon Ballistic Gun Heavy Assault Rifle Ballistic Cannon Light Cannon Launcher Mini Grenade Launcher Special Weapon Enhanced Flamer Impact Weapon Makeshift Hammer Slashing Weapon Scythe Piercing Weapon Heavy Pick Build | -11 -10 -9 -9 -9 -8 -8 -7 -6 -6 -6 -5 -5 -5 -4 ------- Run | Scr Mat Mat Min Exi Min Mat Fac Fac Low Low Fac Was Fac Fac Slots Evolved 12 | . . 2 . . . 2 2 2 . . 2 . . 2 Power . | . . . . . . . . . . . . . . . Propulsion 3 | . . 1 . . . . . 1 . . 1 . . . Utility 8 | . . 1 . . . 2 1 1 . . 1 . . 2 Weapon 1 | . . . . . . . 1 . . . . . . . Parts Attached 261 | . 15 17 1 . 6 14 37 56 12 1 31 . 37 34 Power 18 | . 1 1 1 . 1 2 1 3 . . 2 . 3 3 Engine 11 | . 1 1 1 . 1 2 1 3 . . 1 . . . Core 5 | . . . . . . . . . . . 1 . 3 1 Reactor 2 | . . . . . . . . . . . . . . 2 Propulsion 69 | . 7 5 . . 1 4 11 6 2 1 5 . 11 16 Treads 25 | . 2 4 . . 1 4 7 . . 1 2 . 1 3 Leg 41 | . 5 1 . . . . 4 6 2 . 2 . 10 11 Wheel 1 | . . . . . . . . . . . 1 . . . Hover 2 | . . . . . . . . . . . . . . 2 Flight . | . . . . . . . . . . . . . . . Utility 107 | . 4 6 . . 2 6 9 28 4 . 15 . 18 15 Device 51 | . 1 2 . . . 2 4 18 2 . 9 . 7 6 Storage 7 | . 3 . . . 1 . 1 1 . . 1 . . . Processor 11 | . . . . . . 2 . 1 . . . . 2 6 Hackware 6 | . . . . . . . 1 1 . . 3 . . 1 Protection 32 | . . 4 . . 1 2 3 7 2 . 2 . 9 2 Artifact . | . . . . . . . . . . . . . . . Weapon 67 | . 3 5 . . 2 2 16 19 6 . 9 . 5 . Energy Gun 21 | . 2 3 . . . . 3 9 3 . 1 . . . Energy Cannon 9 | . . 1 . . 1 1 4 1 . . 1 . . . Ballistic Gun 12 | . . 1 . . 1 1 4 4 . . 1 . . . Ballistic Cannon 1 | . 1 . . . . . . . . . . . . . Launcher 2 | . . . . . . . . . 1 . 1 . . . Special Weapon 1 | . . . . . . . . . . . 1 . . . Impact Weapon 1 | . . . . . . . . . . . 1 . . . Slashing Weapon 14 | . . . . . . . 5 5 2 . 2 . . . Piercing Weapon 6 | . . . . . . . . . . . 1 . 5 . Special Melee Weapon . | . . . . . . . . . . . . . . . Unidentified Prototypes 7 | . . . . . 1 1 1 1 . . 1 . 2 . Parts Lost 73 | . 1 3 . . 2 8 5 . 11 . 1 1 13 28 Power 9 | . . 1 . . . 1 1 . 1 . . . 2 3 Propulsion 34 | . . . . . . 3 2 . 5 . 1 . 7 16 Utility 17 | . . 1 . . 1 2 1 . 1 . . 1 3 7 Weapon 13 | . 1 1 . . 1 2 1 . 4 . . . 1 2 Highest Loss Streak 21 | . 1 3 . . 1 3 2 . 9 . 1 1 9 21 Average Slot Usage (%) 91 | . 98 99 100 100 99 99 99 99 57 57 83 85 89 94 Engine 6 | . 14 11 11 11 11 8 7 6 . . 1 . . . Treads 13 | . 7 27 33 33 33 26 18 . . 3 6 5 . 4 Leg 10 | . 20 5 . . . . 3 25 8 6 6 11 23 17 Device 5 | . 9 . . . . 9 7 11 6 6 6 5 4 6 Storage 12 | . 17 22 22 22 22 18 15 6 6 6 5 5 5 5 Processor 5 | . . . . . . 13 9 7 6 6 5 5 5 18 Hackware 8 | . . . . . . . 5 11 13 13 18 23 23 15 Protection 6 | . . 10 11 11 10 3 6 7 6 6 6 3 5 3 Energy Gun 5 | . 23 12 11 11 . . 3 7 . . . . . . Energy Cannon 2 | . . 3 . . 8 9 6 2 . . 3 3 . . Ballistic Gun 4 | . . 3 11 11 13 9 6 4 . . 2 . . . Slashing Weapon 2 | . . . . . . . 4 4 5 6 3 5 2 . Piercing Weapon 1 | . . . . . . . . . . . . . 8 14 Naked Turns . | . . . . . . . . . . . . . . . Heaviest Build 73 | 11 36 43 43 41 50 51 62 73 66 38 66 57 56 54 Greatest Support 110 | 20 40 60 60 60 60 60 66 78 78 28 28 60 110 90 Greatest Overweight (x) 15 | . . . . . . 1 3 . 12 12 2 . 15 13 Average Overweight (x) . | . . . . . . . . . 7 3 1 . . . Largest Inventory Capacity 18 | . 14 14 14 14 16 16 16 18 12 12 12 12 12 12 Average Capacity 13 | . 7 14 14 14 14 16 16 12 12 12 12 12 12 12 Most Carried 16 | . 8 14 14 14 15 16 16 16 12 11 12 12 12 12 Average Carried 11 | . 6 11 14 13 13 15 15 11 9 10 11 12 11 9 Final Capacity 16 | 6 14 14 14 14 16 16 16 12 12 12 12 12 12 12 Final Carried 16 | 6 8 14 14 14 15 16 16 12 10 11 11 12 11 8 Class Distribution -------------------- 29% | Mutant 27% | Hacker-Mutant 16% | Scavenger-Mutant 11% | Hacker-Assassin 3% | Hacker-Tank Dominant Class ---------------- Mutant | -10/Materials Mutant | -9/Materials Mutant | -9/Mines Scavenger-Mutant | -9/Exiles Mutant | -8/Mines Mutant | -8/Materials Scavenger-Mutant | -7/Factory Hacker-Assassin | -6/Factory Hacker-Mutant | -6/Lower Caves Hacker-Mutant | -6/Lower Caves Hacker-Mutant | -5/Factory Hacker-Mutant | -5/Waste Hacker-Mutant | -5/Factory Hacker-Mutant | -4/Factory Resources | -11 -10 -9 -9 -9 -8 -8 -7 -6 -6 -6 -5 -5 -5 -4 ----------- Run | Scr Mat Mat Min Exi Min Mat Fac Fac Low Low Fac Was Fac Fac Matter Collected 3646 | 188 178 235 70 . 121 174 588 658 59 66 472 . 543 294 Remotely . | . . . . . . . . . . . . . . . Salvage Created 6944 | . 530 773 205 . 185 441 784 912 152 . 416 . 978 1568 Parts 365 | . 34 48 9 . 12 21 43 39 6 . 14 . 52 87 Haulers Intercepted 1 | . . 1 . . . . . . . . . . . . Recyclers Shooed . | . . . . . . . . . . . . . . . Parts Field Recycled . | . . . . . . . . . . . . . . . Retrieved Matter . | . . . . . . . . . . . . . . . Parts Self-Destructed 2 | . . . . . . . . . 2 . . . . . Prevented 4 | . . . . . . . . . 3 1 . . . . Kills | -11 -10 -9 -9 -9 -8 -8 -7 -6 -6 -6 -5 -5 -5 -4 ------- Run | Scr Mat Mat Min Exi Min Mat Fac Fac Low Low Fac Was Fac Fac Combat Hostiles Destroyed 128 | . 13 18 4 . 5 7 15 16 4 . 8 . 15 23 Melee 38 | . . . . . . . . . . . . . 15 23 Guns 63 | . 12 11 4 . 5 5 10 13 1 . 2 . . . Cannons 16 | . 1 2 . . . 2 5 3 . . 3 . . . AOE 10 | . . 4 . . . . . . 3 . 3 . . . Classes Destroyed 13 | . 4 3 . . . 2 2 1 . . . . . 1 Worker 5 | . 2 1 . . . . . . . . 1 . . 1 Builder 4 | . 1 . . . . 1 1 . . . . . 1 . Hauler 1 | . . 1 . . . . . . . . . . . . Recycler 1 | . . . . . . 1 . . . . . . . . Operator 3 | . . . . . . . 1 . . . 1 . . 1 Watcher 3 | . . 2 . . . . . 1 . . . . . . Swarmer 22 | . 3 6 . . 3 . 3 4 . . 3 . . . Grunt 60 | . 10 8 4 . 2 3 7 5 3 . . . 8 10 Brawler 1 | . . . . . . . . . . . . . . 1 Duelist 2 | . . . . . . . . 1 1 . . . . . Sentry 19 | . . 4 . . . 3 3 3 . . 3 . 1 2 Hunter 9 | . . . . . . 1 . 1 . . . . 4 3 Programmer 15 | . . . . . . . 2 2 . . 2 . 2 7 Best Kill Streak 9 | . 7 4 2 . 3 3 5 4 3 . 3 . 3 9 Combat Bots Only 8 | . 4 4 2 . 3 3 4 4 3 . 3 . 2 8 Max Kills in Single Turn 3 | . 2 3 1 . 1 1 1 1 1 . 3 . 1 1 Gunslinging . | . . . . . . . . . . . . . . . Exploded 3 | . . 2 . . . . . . 1 . 3 . . . Melee 1 | . . . . . . . . . . . . . 1 1 Uniques/NPCs Destroyed . | . . . . . . . . . . . . . . . Combat | -11 -10 -9 -9 -9 -8 -8 -7 -6 -6 -6 -5 -5 -5 -4 -------- Run | Scr Mat Mat Min Exi Min Mat Fac Fac Low Low Fac Was Fac Fac Damage Taken 15503 | . 509 937 207 . 316 984 1649 1051 1431 . 526 35 3010 4848 Core 2801 | . 92 108 23 . . 88 183 71 288 . 105 . 691 1152 Absorbed by Shields . | . . . . . . . . . . . . . . . Core Remaining (%) 66 | 100 63 . . . 67 84 73 . . 57 . . 20 . Volleys Fired 256 | . 34 56 20 . 12 36 39 37 9 . 13 . . . Largest 3 | . 2 2 2 . 2 2 3 3 3 . 3 . . . Hottest 209 | . 105 100 63 . 83 83 138 177 165 . 209 . . . Shots Fired 565 | . 68 102 40 . 24 72 104 101 16 . 37 1 . . Gun 433 | . 64 82 40 . 22 36 73 86 11 . 19 . . . Cannon 121 | . 4 20 . . 2 36 31 15 . . 12 1 . . Launcher 6 | . . . . . . . . . 5 . 1 . . . Special 5 | . . . . . . . . . . . 5 . . . Kinetic 203 | . 4 21 20 . 22 36 53 32 3 . 12 . . . Thermal 172 | . 30 13 . . 2 36 31 31 4 . 24 1 . . Explosive 6 | . . . . . . . . . 5 . 1 . . . Electromagnetic 184 | . 34 68 20 . . . 20 38 4 . . . . . Robot Hit Streak 40 | . 5 23 13 . 17 40 17 19 8 . 16 . . . Robot Miss Streak 4 | . 3 4 1 . 1 3 3 2 2 . 2 1 . . Penetration Max 1 | . . . . . . . 1 . . . . . . . Secondary Targets 5 | . 1 1 1 . . . . 2 . . . . . . Max Gunslinging Chain 1 | . 1 1 1 . . . . 1 . . . . . . Shots Hit Robots 560 | . 42 77 34 . 19 59 80 79 13 . 29 . 52 76 Core Hits 259 | . 22 33 7 . 9 18 36 35 10 . 18 . 30 41 Critical Hits 12 | . . 1 . . . 1 . 3 . . . . 1 6 Critical Kills 5 | . . . . . . 1 . . . . . . . 4 Critical Parts Destroyed 7 | . . 1 . . . . . 3 . . . . 1 2 Melee Attacks 272 | . . . . . . . 35 14 12 . 20 . 83 108 Impact . | . . . . . . . . . . . . . . . Slashing 98 | . . . . . . . 35 14 12 . 19 . 18 . Piercing 174 | . . . . . . . . . . . 1 . 65 108 Sneak Attacks 3 | . . . . . . . . . . . 1 . 1 1 Combat Hostiles . | . . . . . . . . . . . . . . . Follow-up Attacks 24 | . . . . . . . . . . . . . 8 16 Damage Inflicted 13925 | . 756 1318 490 . 301 966 1969 1772 553 . 953 . 1729 3118 Guns 5516 | . 516 819 456 . 283 376 1216 1400 120 . 330 . . . Cannons 2123 | . 53 243 . . 18 579 569 372 . . 289 . . . Explosions 1167 | . 167 256 34 . . . 143 . 433 . 134 . . . Melee 5043 | . . . . . . . 38 . . . 158 . 1729 3118 Ramming 34 | . 20 . . . . 11 3 . . . . . . . Kinetic 2885 | . 53 240 244 . 283 376 897 543 23 . 226 . . . Thermal 3326 | . 487 397 34 . 18 579 712 617 47 . 435 . . . Explosive 567 | . . . . . . . . . 433 . 134 . . . Electromagnetic 2070 | . 196 681 212 . . . 319 612 50 . . . . . Impact . | . . . . . . . . . . . . . . . Slashing 350 | . . . . . . . 38 . . . 127 . 185 . Piercing 4693 | . . . . . . . . . . . 31 . 1544 3118 Highest Corruption 8 | . . . . . . . . 2 2 2 1 6 7 8 Average Corruption 2 | . . . . . . . . 1 2 2 1 5 6 1 Corruption Purged . | . . . . . . . . . . . . . . . Effects 64 | . . . . . . . . 8 14 1 . 4 28 9 Message Errors 25 | . . . . . . . . 3 5 1 . 1 13 2 Matter Fused 6 | . . . . . . . . . . . . 1 3 2 Heat Flow Errors 6 | . . . . . . . . 1 3 . . . 2 . Energy Discharges 9 | . . . . . . . . 3 3 . . . 1 2 Parts Rejected 2 | . . . . . . . . . . . . . 2 . Data Loss (minor) 6 | . . . . . . . . 1 2 . . 1 2 . Data Loss (major) 2 | . . . . . . . . . . . . . 2 . Misfires 1 | . . . . . . . . . . . . 1 . . Targeting Errors 7 | . . . . . . . . . 1 . . . 3 3 Overload Shots . | . . . . . . . . . . . . . . . Overflow Damage 118 | . 7 . . . . . 12 . 32 . . . 9 58 Projectiles 3 | . . . . . . . 3 . . . . . . . Explosions 48 | . 7 . . . . . 9 . 32 . . . . . Melee 67 | . . . . . . . . . . . . . 9 58 Knockbacks 2 | . 1 1 . . . . . . . . . . . . Impact . | . . . . . . . . . . . . . . . Kinetic 2 | . 1 1 . . . . . . . . . . . . Secondary . | . . . . . . . . . . . . . . . Self-Inflicted Damage 383 | . 40 137 . . . . 50 . 107 . 49 . . . Shots 11 | . 1 3 . . . . 1 . 5 . 1 . . . Rammed 6 | . 3 . . . . 2 1 . . . . . . . Targets Rammed 8 | . 4 . . . . 3 1 . . . . . . . Kicked 1 | . 1 . . . . . . . . . . . . . Crushed 1 | . . . . . . 1 . . . . . . . . Highest Temperature 295 | . 181 279 150 . 46 183 149 295 249 . 207 52 261 . Average Temperature 69 | . 65 77 64 . 17 52 57 84 80 . 82 26 125 . Received Heat Transfer 2562 | . 216 303 114 . 117 225 339 243 387 . 63 . 243 312 Effects 1 | . . 1 . . . . . . . . . . . . Energy Bleed 1 | . . 1 . . . . . . . . . . . . Siege Activations . | . . . . . . . . . . . . . . . Robots Corrupted 1 | . . 1 . . . . . . . . . . . . Combat Hostiles 1 | . . 1 . . . . . . . . . . . . Parts Fried 6 | . . 2 . . . . . 3 1 . . . . . Impact Corruptions . | . . . . . . . . . . . . . . . Robots Melted . | . . . . . . . . . . . . . . . Combat Hostiles . | . . . . . . . . . . . . . . . Parts Melted 13 | . 1 . . . . 2 1 6 . . 3 . . . Heat Transferred 5994 | . 1151 596 50 . 37 1110 1001 1107 74 . 868 . . . Parts Sabotaged . | . . . . . . . . . . . . . . . Parts Stolen . | . . . . . . . . . . . . . . . Parts Stripped . | . . . . . . . . . . . . . . . Power Chain Reactions 6 | . 1 3 1 . . . 1 . . . . . . . Missiles Intercepted . | . . . . . . . . . . . . . . . Alert | -11 -10 -9 -9 -9 -8 -8 -7 -6 -6 -6 -5 -5 -5 -4 ------- Run | Scr Mat Mat Min Exi Min Mat Fac Fac Low Low Fac Was Fac Fac Peak Influence 667 | . 190 389 211 . 130 166 277 360 . . 152 40 260 667 Initial 58 | . . 3 58 . . . 24 1 . . . 23 21 1 Average 87 | . 74 92 131 . 43 42 59 130 . . 57 35 85 186 Maximum Alert Level 2 | . . 1 1 . . . 1 1 . . . . 1 2 Low Security (%) 87 | . 100 89 74 . 100 100 95 74 . . 100 100 79 56 Level 1 10 | . . 10 25 . . . 4 25 . . . . 20 29 Level 2 1 | . . . . . . . . . . . . . . 14 Level 3 . | . . . . . . . . . . . . . . . Level 4 . | . . . . . . . . . . . . . . . Level 5 . | . . . . . . . . . . . . . . . High Security . | . . . . . . . . . . . . . . . Max Security . | . . . . . . . . . . . . . . . Squads Dispatched 19 | . 3 1 . . . 1 5 1 . . 2 . 3 3 Investigation 2 | . 1 . . . . . . . . . . . . 1 Extermination 7 | . . . . . . . 3 1 . . 1 . 1 1 Reinforcement 8 | . 2 1 . . . 1 2 . . . 1 . . 1 Assault . | . . . . . . . . . . . . . . . Garrison 2 | . . . . . . . . . . . . . 2 . Intercept . | . . . . . . . . . . . . . . . Construction Impeded 1 | . . . . . . . 1 . . . . . . . Haulers Reinforced 1 | . . . . . . . 1 . . . . . . . Stealth | -11 -10 -9 -9 -9 -8 -8 -7 -6 -6 -6 -5 -5 -5 -4 --------- Run | Scr Mat Mat Min Exi Min Mat Fac Fac Low Low Fac Was Fac Fac Distress Signals 7 | . . 1 . . . 2 3 1 . . . . . . Communications Jammed 3 | . . . . . . 3 . . . . . . . . Distress Signals 3 | . . . . . . 3 . . . . . . . . Times Spotted 206 | . 27 29 7 . 6 15 29 22 5 . 19 3 16 28 Peak Tracking Total 8 | . 6 4 3 . 3 5 7 4 5 . 5 3 2 8 Tactical Retreats 15 | . . 3 3 . 1 . 2 2 1 . . 1 1 1 Traps | -11 -10 -9 -9 -9 -8 -8 -7 -6 -6 -6 -5 -5 -5 -4 ------- Run | Scr Mat Mat Min Exi Min Mat Fac Fac Low Low Fac Was Fac Fac Traps Triggered 8 | . 1 . . . . . 2 2 . . 2 . . 1 Indirectly . | . . . . . . . . . . . . . . . Trap Hack Attempts . | . . . . . . . . . . . . . . . Triggered . | . . . . . . . . . . . . . . . Disarmed . | . . . . . . . . . . . . . . . Reprogrammed . | . . . . . . . . . . . . . . . Reused . | . . . . . . . . . . . . . . . Traps Extracted . | . . . . . . . . . . . . . . . Installed . | . . . . . . . . . . . . . . . Triggered 2 | . . 1 . . . . . . . 1 . . . . Machines | -11 -10 -9 -9 -9 -8 -8 -7 -6 -6 -6 -5 -5 -5 -4 ---------- Run | Scr Mat Mat Min Exi Min Mat Fac Fac Low Low Fac Was Fac Fac Machines Disabled 4 | . . 1 . . . . 1 2 . . . . . . Max in Single Turn 1 | . . 1 . . . . 1 1 . . . . . . Garrison Access 2 | . . . . . . . . . . . . . 1 1 Machines Sabotaged . | . . . . . . . . . . . . . . . Garrisons Compromised . | . . . . . . . . . . . . . . . Overloaded Fab Kills . | . . . . . . . . . . . . . . . Fab Network Shutdowns 1 | . . . . . . . . . . . . . . 1 Hacking | -11 -10 -9 -9 -9 -8 -8 -7 -6 -6 -6 -5 -5 -5 -4 --------- Run | Scr Mat Mat Min Exi Min Mat Fac Fac Low Low Fac Was Fac Fac Machines Accessed 50 | . 5 4 1 1 . 3 7 8 . . 8 . 6 7 Terminals 32 | . 5 3 1 . . 2 5 4 . . 4 . 4 4 Fabricators 4 | . . . . . . . . . . . 2 . 1 1 Repair Stations 4 | . . 1 . . . . . 3 . . . . . . Recycling Units 3 | . . . . . . . 1 1 . . 1 . . . Scanalyzers 4 | . . . . . . 1 1 . . . 1 . . 1 Garrison Access 2 | . . . . . . . . . . . . . 1 1 Total Hacks 179 | . 19 11 5 1 . 13 19 22 . . 43 . 25 21 Successful 120 | . 10 8 2 1 . 8 12 11 . . 36 . 19 13 Failed 59 | . 9 3 3 . . 5 7 11 . . 7 . 6 8 Catastrophic 8 | . 1 . 1 . . 2 1 . . . 1 . . 2 Database Lockouts . | . . . . . . . . . . . . . . . Manual 87 | . 14 7 4 . . 8 10 9 . . 14 . 11 10 Terminals 126 | . 19 9 5 . . 11 15 15 . . 21 . 19 12 Fabricators 16 | . . . . . . . . . . . 7 . 5 4 Repair Stations 7 | . . 2 . . . . . 5 . . . . . . Recycling Units 5 | . . . . . . . 2 2 . . 1 . . . Scanalyzers 22 | . . . . . . 2 2 . . . 14 . . 4 Garrison Access 2 | . . . . . . . . . . . . . 1 1 Terminal Hacks 55 | . 6 5 2 1 . 5 6 3 . . 10 . 12 5 Record 3 | . . . . 1 . . 1 . . . . . 1 . Part Schematic 7 | . . . . . . . . . . . 4 . 3 . Robot Analysis 1 | . . . . . . 1 . . . . . . . . Prototype ID Bank 1 | . . . . . . 1 . . . . . . . . Level Access Points 3 | . . . . . . . 1 . . . . . 1 1 Branch Access Points 5 | . . 1 1 . . . . 1 . . . . 1 1 Machine Index 1 | . . . . . . . . . . . 1 . . . Terminal Index 3 | . . . . . . . . . . . 1 . 1 1 Fabricator Index 2 | . . . . . . . . . . . . . 1 1 Alert Level 2 | . . 1 . . . . . . . . 1 . . . Unreport Threat 13 | . 3 2 . . . 2 2 . . . 1 . 3 . Locate Traps 9 | . 2 . . . . . 2 2 . . 1 . 1 1 Hauler Manifests 4 | . 1 1 . . . 1 . . . . 1 . . . Zone Layout 1 | . . . 1 . . . . . . . . . . . Fabricator Hacks 16 | . . . . . . . . . . . 7 . 5 4 Load Schematic 7 | . . . . . . . . . . . 2 . 2 3 Build 9 | . . . . . . . . . . . 5 . 3 1 Repair Station Hacks 6 | . . 2 . . . . . 4 . . . . . . Scan Component 3 | . . 1 . . . . . 2 . . . . . . Repair 3 | . . 1 . . . . . 2 . . . . . . Recycling Unit Hacks 4 | . . . . . . . 2 1 . . 1 . . . Report Inventory 2 | . . . . . . . 1 1 . . . . . . Retrieve Components 2 | . . . . . . . 1 . . . 1 . . . Scanalyzer 20 | . . . . . . 2 2 . . . 14 . . 2 Insert Component 11 | . . . . . . 1 1 . . . 8 . . 1 Analyze 9 | . . . . . . 1 1 . . . 6 . . 1 Garrison Access Hacks 2 | . . . . . . . . . . . . . 1 1 Seal Access 2 | . . . . . . . . . . . . . 1 1 Unauthorized Hacks 17 | . 4 1 . . . 1 2 3 . . 4 . 1 1 Terminals 17 | . 4 1 . . . 1 2 3 . . 4 . 1 1 Track 1 | . 1 . . . . . . . . . . . . . Assimilate 3 | . 1 . . . . . . 1 . . 1 . . . Botnet 13 | . 2 1 . . . 1 2 2 . . 3 . 1 1 Fabricators . | . . . . . . . . . . . . . . . Repair Stations . | . . . . . . . . . . . . . . . Recycling Units . | . . . . . . . . . . . . . . . Scanalyzers . | . . . . . . . . . . . . . . . Garrison Access . | . . . . . . . . . . . . . . . Data Cores Recovered 1 | . . . . . . . 1 . . . . . . . Used 1 | . . . . . . . 1 . . . . . . . Hacking Detections 42 | . 4 3 1 . . 3 6 8 . . 6 . 5 6 Full Trace Events . | . . . . . . . . . . . . . . . Feedback Events . | . . . . . . . . . . . . . . . Feedback Blocked . | . . . . . . . . . . . . . . . Robot Schematics Acquired . | . . . . . . . . . . . . . . . Robots Built . | . . . . . . . . . . . . . . . Matter . | . . . . . . . . . . . . . . . Time . | . . . . . . . . . . . . . . . Total Robot Build Rating . | . . . . . . . . . . . . . . . Part Schematics Acquired 14 | . . . . . . 1 1 . . . 9 . 3 . Parts Built 10 | . . . . . . . . . . . 4 . 6 . Matter 1586 | . . . . . . . . . . . 848 . 526 212 Time 520 | . . . . . . . . . . . 284 . 130 106 Total Part Build Rating 50 | . . . . . . . . . . . 24 . 26 . Parts Repaired 3 | . . 1 . . . . . 2 . . . . . . Time 96 | . . 26 . . . . . 70 . . . . . . Parts Recycled . | . . . . . . . . . . . . . . . Recycled Matter . | . . . . . . . . . . . . . . . Retrieved Matter . | . . . . . . . . . . . . . . . Retrieved Components 6 | . . . . . . . 5 . . . 1 . . . Parts Scanalyzed 8 | . . . . . . 1 1 . . . 5 . . 1 Part Schematics Acquired 7 | . . . . . . 1 1 . . . 5 . . . Parts Damaged 1 | . . . . . . . . . . . 1 . . . Bothacking | -11 -10 -9 -9 -9 -8 -8 -7 -6 -6 -6 -5 -5 -5 -4 ------------ Run | Scr Mat Mat Min Exi Min Mat Fac Fac Low Low Fac Was Fac Fac Used RIF Installer . | . . . . . . . . . . . . . . . Robots Hacked . | . . . . . . . . . . . . . . . Non-combat . | . . . . . . . . . . . . . . . Combat . | . . . . . . . . . . . . . . . Robot Hacks Applied . | . . . . . . . . . . . . . . . Relay Couplers Released . | . . . . . . . . . . . . . . . Robots Rewired . | . . . . . . . . . . . . . . . Allies Hacked . | . . . . . . . . . . . . . . . Hacks Repelled . | . . . . . . . . . . . . . . . Allies | -11 -10 -9 -9 -9 -8 -8 -7 -6 -6 -6 -5 -5 -5 -4 -------- Run | Scr Mat Mat Min Exi Min Mat Fac Fac Low Low Fac Was Fac Fac Total Allies 2 | . . . . . . . . 1 . . 1 . . . Largest Group 1 | . . . . . . . . 1 . . 1 . . . Highest-Rated Group 26 | . . . . . . . . 26 . . 10 . . . Highest-Rated Ally 26 | . . . . . . . . 26 . . 10 . . . Total Orders . | . . . . . . . . . . . . . . . Ally Attacks . | . . . . . . . . . . . . . . . Total Damage . | . . . . . . . . . . . . . . . Kills . | . . . . . . . . . . . . . . . Allies Corrupted 1 | . . . . . . . . . . . 1 . . . Allies Melted . | . . . . . . . . . . . . . . . Intel | -11 -10 -9 -9 -9 -8 -8 -7 -6 -6 -6 -5 -5 -5 -4 ------- Run | Scr Mat Mat Min Exi Min Mat Fac Fac Low Low Fac Was Fac Fac Robot Analysis Total 1 | . . . . . . 1 . . . . . . . . Derelict Logs Recovered 1 | . . . 1 . . . . . . . . . . . Drone Launches . | . . . . . . . . . . . . . . . Drone Recoveries . | . . . . . . . . . . . . . . . Exploration | -11 -10 -9 -9 -9 -8 -8 -7 -6 -6 -6 -5 -5 -5 -4 ------------- Run | Scr Mat Mat Min Exi Min Mat Fac Fac Low Low Fac Was Fac Fac Turns Passed 12418 | . 992 1109 453 552 914 678 1817 1299 1588 73 975 90 946 932 Spaces Moved 5927 | 1 615 523 226 344 511 281 906 711 312 27 582 75 415 398 Core 215 | . . . . . . . . . 205 5 . . 2 3 Treads 3020 | . 149 523 226 344 511 281 877 . . 22 74 . . 13 Legs 2183 | 1 466 . . . . . 29 711 107 . . 75 413 381 Wheels 508 | . . . . . . . . . . . 508 . . . Hover 1 | . . . . . . . . . . . . . . 1 Flight . | . . . . . . . . . . . . . . . Fastest Speed 110 | 120 120 160 160 160 160 160 145 125 120 180 110 120 120 120 Average Speed 161 | 120 129 160 160 160 160 160 164 125 469 267 125 120 124 127 Slowest Speed 800 | 120 160 160 160 160 160 180 220 125 650 650 180 120 800 700 Overloaded Moves . | . . . . . . . . . . . . . . . Propulsion Burnouts . | . . . . . . . . . . . . . . . Robots Hopped . | . . . . . . . . . . . . . . . Cave-ins Triggered . | . . . . . . . . . . . . . . . Exploration Rate (%) 41 | 2 80 48 56 83 99 26 30 30 51 7 14 68 11 12 Regions Visited 14 Branch Regions 5 Pre-discovered Areas 2 | . . . 1 1 . . . . . . . . . . Known Exits Taken 5 | . . 1 . . . 1 1 1 . . . . 1 . Unknown Exits Taken 7 | 1 1 . 1 1 1 . . . 1 1 . . . . Scrap Searched 6 | . . . . . 3 . . . 2 1 . . . . Spaces Dug 97 | . . . . . . . 34 14 12 . 16 . 10 11 Terrain Destroyed 156 | . 3 15 6 . . . 38 15 20 . 37 1 10 11 Melee 97 | . . . . . . . 34 14 12 . 16 . 10 11 Projectile 17 | . . . . . . . 2 1 1 . 12 1 . . AOE 42 | . 3 15 6 . . . 2 . 7 . 9 . . . Terrain Rammed . | . . . . . . . . . . . . . . . Walls Destroyed . | . . . . . . . . . . . . . . . Machines Disabled . | . . . . . . . . . . . . . . . Actions | -11 -10 -9 -9 -9 -8 -8 -7 -6 -6 -6 -5 -5 -5 -4 --------- Run | Scr Mat Mat Min Exi Min Mat Fac Fac Low Low Fac Was Fac Fac Total 7839 | . 744 692 278 346 584 436 1096 1008 404 28 762 75 703 683 Wait 944 | . 49 75 31 1 47 86 38 147 57 . 90 . 157 166 Move 5914 | . 614 522 225 343 510 280 905 710 311 26 582 74 414 398 Hop . | . . . . . . . . . . . . . . . Pick Up 103 | . 12 13 . 1 5 11 16 15 2 1 11 . 12 4 Fast Attach 62 | . 1 3 1 . . 4 7 4 1 1 9 . 20 11 Attach 48 | . 2 5 . . 2 7 5 4 5 . 4 . 6 8 Detach 7 | . . 1 . . . . 1 . 1 . 3 1 . . Swap 152 | . 12 9 . . 4 3 25 48 6 . 18 . 12 15 Drop 116 | . 16 8 1 1 4 6 24 24 . . 12 . 16 4 Fire 256 | . 34 56 20 . 12 36 39 37 9 . 13 . . . Melee 224 | . . . . . . . 35 14 12 . 20 . 66 77 Ram . | . . . . . . . . . . . . . . . Kick 3 | . 3 . . . . . . . . . . . . . Crush 5 | . 1 . . . . 3 1 . . . . . . . Escape Stasis 5 | . . . . . . . . 5 . . . . . . Rewire . | . . . . . . . . . . . . . . . Trap . | . . . . . . . . . . . . . . . Miscellaneous . | . . . . . . . . . . . . . . . Route ------- -11/Scrapyard -10/Materials (discovered 4 exits: *Mat x3 / [*Min]) -9/Materials (discovered 3 exits: *Mat / *Min x2) -9/Mines -9/Exiles -8/Mines (discovered 2 exits: *Mat x2) -8/Materials -7/Factory (discovered 4 exits: *Fac x4) -6/Factory (discovered 3 exits: *Fac / *Low x2) -6/Lower Caves -6/Lower Caves -5/Factory (discovered 2 exits: *Upp / *Ext) -5/Waste -5/Factory (discovered 8 exits: *Fac x4 / Upp x2 / Ext x2) -4/Factory (discovered 7 exits: *Res x4 / *Upp x2 / Arm) History --------- Turn | Location | Event 1 | -11/Scrapyard | Discovered new exit (range 0) 1 | -11/Scrapyard | Entered Materials 331 | -10/Materials | Build established: Mutant 400 | -10/Materials | Discovered new exit (range 10) 512 | -10/Materials | Discovered new exit (range 16) 645 | -10/Materials | Discovered new exit (range 15) 921 | -10/Materials | Discovered new exit (range 16) 993 | -10/Materials | Entered another Materials area 993 | -9/Materials | Evolved 2 slots: Propulsion x1, Utility x1 1109 | -9/Materials | Discovered new exit (range 2) 1347 | -9/Materials | Discovered new exit (range 16) 1661 | -9/Materials | Discovered new exit (range 6) 1781 | -9/Materials | Lost 3 parts (1p1u1w) 1861 | -9/Materials | Repaired EM Pulse Gun 2067 | -9/Materials | Identified exit to Mines 2102 | -9/Materials | Entered Mines 2217 | -9/Mines | Learned location of Storage (-8) 2276 | -9/Mines | Learned location of 1 exit from Materials 2329 | -9/Mines | Received a Rocket Launcher from a helpful Derelict 2522 | -9/Mines | Found a hidden stash of uninstalled traps 2547 | -9/Mines | Deemed a non-threat by the Exiles lab entrance 2547 | -9/Mines | Discovered new exit (range 5) 2555 | -9/Mines | Entered Exiles 2595 | -9/Exiles | Met 8R-AWN 2621 | -9/Exiles | Met EX-HEX 2667 | -9/Exiles | Met EX-BIN 2682 | -9/Exiles | Build established: Scavenger-Mutant 2701 | -9/Exiles | Met EX-DEC 2800 | -9/Exiles | Visited The Gauntlet 2992 | -9/Exiles | Learned location of Zion (-6) 3092 | -9/Exiles | Discovered new exit (range 11) 3107 | -9/Exiles | Entered Mines 3214 | -8/Mines | Discovered new exit (range 2) 3672 | -8/Mines | Discovered new exit (range 5) 3715 | -8/Mines | Build established: Mutant 4021 | -8/Mines | Entered Materials 4021 | -8/Materials | Evolved 2 slots: Utility x2 4022 | -8/Materials | Identified exit to Factory 4253 | -8/Materials | Lost 3 parts (1p1n1u) 4699 | -8/Materials | Entered Factory 4699 | -7/Factory | Evolved 2 slots: Utility x1, Weapon x1 4753 | -7/Factory | Discovered new exit (range 21) 5040 | -7/Factory | Build established: Derelict-Mutant 5331 | -7/Factory | Discovered new exit (range 10) 5383 | -7/Factory | Identified exit to Factory 5937 | -7/Factory | Build established: Scavenger-Mutant 6516 | -7/Factory | Entered another Factory area 6516 | -6/Factory | Evolved 2 slots: Propulsion x1, Utility x1 6949 | -6/Factory | Repaired Imp. Medium Armor Plating 7023 | -6/Factory | Identified exit to Lower Caves 7244 | -6/Factory | Discovered new exit (range 4) 7461 | -6/Factory | Repaired Sensor Array 7815 | -6/Factory | Entered Lower Caves 7821 | -6/Lower Caves | Spotted B-75 Beast 8026 | -6/Lower Caves | Lost 9 parts (1p4n1u3w) 8196 | -6/Lower Caves | Build established: Hacker-Mutant 8583 | -6/Lower Caves | Encountered a Warlord checkpoint 9251 | -6/Lower Caves | Discovered new exit (range 24) 9403 | -6/Lower Caves | Entered another Lower Caves area 9404 | -6/Lower Caves | Encountered a Warlord checkpoint 9413 | -6/Lower Caves | Discovered new exit (range 20) 9476 | -6/Lower Caves | Entered Factory 9476 | -5/Factory | Evolved 2 slots: Propulsion x1, Utility x1 10011 | -5/Factory | Discovered new exit (range 10) 10157 | -5/Factory | Discovered new exit (range 15) 10207 | -5/Factory | Fabricated Lrn. Terrain Scanner? 10239 | -5/Factory | Fabricated Centrium Leg? 10288 | -5/Factory | Fabricated Imp. Sensor Array (x1) 10327 | -5/Factory | Fabricated Centrium Leg (x1) 10451 | -5/Factory | Sucked down chute 10451 | -5/Factory | Entered Waste 10462 | -5/Waste | Spotted C-40 Crusher 10466 | -5/Waste | EMP discharged 10513 | -5/Waste | Spotted C-40 Crusher 10517 | -5/Waste | Spotted C-40 Crusher 10525 | -5/Waste | Crushed by Compactor (1 part destroyed, 1 dropped) 10530 | -5/Waste | Discovered new exit (range 10) 10541 | -5/Waste | Entered Factory 10675 | -5/Factory | Garrison activated, responded to threat 10946 | -5/Factory | Identified exit to Upper Caves 10946 | -5/Factory | Identified exit to Extension 10946 | -5/Factory | Identified exit to Factory 11100 | -5/Factory | Core integrity fell below 50% 11176 | -5/Factory | Lost 9 parts (2p4n2u1w) 11232 | -5/Factory | Fabricated Hvy. Pick (x2) 11288 | -5/Factory | Fabricated Hvy. Pick (x2) 11356 | -5/Factory | Fabricated Imp. Weapon Shielding (x2) 11487 | -5/Factory | Entered another Factory area 11487 | -4/Factory | Evolved 2 slots: Utility x2 11772 | -4/Factory | Identified exit to Upper Caves 11772 | -4/Factory | Identified exit to Armory 11936 | -4/Factory | Identified exit to Research 12100 | -4/Factory | Lost 3 parts (3n) 12153 | -4/Factory | Destroyed 8 combat bots 12280 | -4/Factory | Local fabrication network quarantined 12388 | -4/Factory | Core integrity fell below 50% 12410 | -4/Factory | Core integrity fell below 20% 12419 | -4/Factory | Destroyed by H-77 Assassin with High-powered Shotgun Last Messages --------------- 12407_ U-05 Engineer lays Concrete. 12407_ K-01 Serf collects debris. 12407_ Penetrated by Slug. 12409_ System corrupted: Hvy. Pick targeting data glitched. 12409_ Penetrated by Slug. 12409_ Slug penetrates Wall. 12409_ Penetrated by Slug. 12410_ K-01 Serf collects debris. 12411_ Penetrated by Slug. 12411_ Hvy. Pick destroyed. 12411_ Slug penetrates Wall. 12411_ U-05 Engineer builds a Door. 12412_ O||XD=,,N0PEU9Z8 61J6GOLNSIJV 12412_ Penetrated by Slug. 12414_ Slug penetrates Wall. 12415_ H-77 Assassin destroyed. 12415_ K-01 Serf collects debris. 12419_ Penetrated by Slug. 12419_ Slug penetrates Wall. 12419_ Penetrated by Slug. Map ----- +----------------------------------------------------+ | ? ???# %% + """ ##?##?## | | ?? ???? ########## """ ? ? | | ?? ? ? ?< ##?####### "?" ? ? | | ???????? ?? ####??####? # | | ?????#? ###??###?#####?? | | ? ? ?# ?? ####### ##??## ?? # ? | | ??? ?# ? ?#?#### ###?##?? ?? # | | ? ? ?##??##????####### #?#?##? ??? ? ? | | ??? ???#?##?#?##??##?# ###### ? ? # ? | | ?????###??#####???#?## #####? ? # ? | | ???#?????######???##?# ###### ?? ?# ? | | ?????#?###?#?###??#### #??#?? #? ? | | ?????###?###??#####?## ######??? ? ??# ?? ?? | | ????#?######??#??##?## u #????#?#??##+#######??# | | ?????????##?###?##?#?# !%######### ? ? ? | | ?????#??####????????## = k ? ? | | ??????????##??##?#??## ! ? ?? | | ???????############### " !%= ?? ?? | | ??????#?# # k ?? ?? | | ????????# #= = [ #??#?+?## | | ????????# #%*%=!% # ??? ??? | | ????????# #=!%![! !!! #???""? ? | | ????????# #|%%%=h !!! #?????"?? | | ????????# uk %[*%! !! #????"" ? | | ????????# % #% [* #?????? ? | | ????????# #= [@! #???????? | | ????????# ##### ########?????? ? | | ????????# #???# # ???????????? | | ?????? / % = #???# # ??????????? | | ?????#### #???#+## + "" ?????????? | | ????????##############????? ? # ""??????????? | | ??????????????????????????? ? #??"???????????? | | ??????????????????????????? ? #??????????????? | | ????????????????????????????# #??????????????? | | ????????????????????????????? ^ #??????????????? | | ????????????????????????????? ? #??????????????? | | ?????????????????????????????????????????????????? | | ?????????????????????????????????????????????????? | | ?????????????????????????????????????????????????? | | ?????????????????????????????????????????????????? | | ?????????????????????????????????????????????????? | | ?????????????????????????????????????????????????? | | ?????????????????????????????????????????????????? | | ?????????????????????????????????????????????????? | | ?????????????????????????????????????????????????? | | ?????????????????????????????????????????????????? | | ?????????????????????????????????????????????????? | | ?????????????????????????????????????????????????? | | ?????????????????????????????????????????????????? | | ?????????????????????????????????????????????????? | +----------------------------------------------------+ Best States ------------- Heat Dissipation 67 Coolant Potential 65 Energy Generation 21 Energy Capacity 315 Matter Stores 300 Matter Capacity 600 Sight Range 22 Robot Scan Range 13 Terrain Scan Range 24 Terrain Scan Density 210 Jamming Range 8 Armor Coverage 450 Utility Shielding 66 Weapon Shielding 66 Evasion (%) 40 Melee Accuracy 16 Target Analysis 6 Armor Integrity Analysis 33 Recoil Reduction 3 Offensive Hacking 34 Defensive Hacking 10 Item Schematics ----------------- Adv. Signal Interpreter | -8/Materials | Scanalyzed Sensor Array | -7/Factory | Scanalyzed Hacking Suite | -5/Factory | Scanalyzed Lrn. Terrain Scanner | -5/Factory | Scanalyzed Imp. Utility Shielding | -5/Factory | Scanalyzed Imp. Weapon Shielding | -5/Factory | Scanalyzed Coolant Injector | -5/Factory | Scanalyzed Adv. Force Field | -5/Factory | Hacked Imp. Hacking Suite | -5/Factory | Hacked Flexi-carbon Leg | -5/Factory | Hacked Imp. Sensor Array | -5/Factory | Hacked Hvy. Pick | -5/Factory | Hacked Adv. Hacking Suite | -5/Factory | Hacked Arm. Leg | -5/Factory | Hacked Robot Schematics ------------------ None Fabricated ------------ Lrn. Terrain Scanner | x1 | -5/Factory Centrium Leg | x1 | -5/Factory | Preloaded Imp. Sensor Array | x1 | -5/Factory Centrium Leg | x1 | -5/Factory | Preloaded Hvy. Pick | x2 | -5/Factory Hvy. Pick | x2 | -5/Factory Imp. Weapon Shielding | x2 | -5/Factory Alien Tech Used ----------------- None Achievements -------------- Production Line Challenges ------------ None Game ------ Seed ExperimentalGravmagHumpback Manual? 0 Play Time 04:05:09 Cumulative 78.3 hours Start 2022.01.29 @ 23:26:59 End 2022.01.31 @ 23:48:22 Sessions 5 Manual Loads 0 Difficulty Rogue Special Mode None Game No. 42 Rogue 42 Adventurer 0 Explorer 0 Win Type - Total 1 Types 1/0/0/0/0/0/0/0/0 Lore% 32 Gallery% 46 Achievement% 32 Wizard Run 0 Options --------- ASCII 0 Keyboard 0 Movement Numpad Keybinds 0 Fullscreen 1 Font 18/Smallcaps Map View 76x50 Tactical HUD 1 Map Filters NONE Filters NONE Steam 1 RUN: cbd04e29-ac9a-4f55-a019-cf70d061b464